Cogmind - Beta 10.2 @@@ ROGUE MODE // 2021.02.03 @ 18:23:04 Player: aperiodic Result: Self-destructed Performance ------------- Evolutions (4) 2000 Regions Visited (9) 1800 Robots Destroyed (169) 845 Value Destroyed (5271) 5271 Prototype IDs (43) 860 Alien Tech Used (0) 0 Bonus (1480) 1480 TOTAL SCORE: 12256 Bonus ------- High Alert Combat Kills 480 Entered Garrisons 200 Used RIF Installer 500 Aligned with FarCom 300 Cogmind --------- Core Integrity 573/850 Matter 278/300 Energy 310/310 System Corruption 17% Temperature Cool (0) Movement Rolling (190) Ox9 Location -6/Factory Parts ------- > --- POWER (1) -------- Fission Core > --- PROPULSION (2) --- Compact Wheel Armored Wheel > --- UTILITY (10) ----- High-capacity Storage Unit High-capacity Storage Unit High-capacity Storage Unit Improved Light Armor Plating Improved Light Armor Plating Improved Medium Armor Plating Improved Medium Armor Plating Improved Medium Armor Plating Improved Medium Armor Plating Hacking Suite > --- WEAPON (2) ------- Flak Gun Flak Gun > --- INVENTORY (28) --- Cooled Ion Engine Light Deuterium Engine Improved Deuterium Engine Improved Deuterium Engine Reinforced Deuterium Engine Reinforced Deuterium Engine Light Treads Light Treads Light Treads Light Treads Improved Heat Sink High-capacity Matter Pod (0) Experimental Sensor Array Hardened Heavy Armor Plating Improved Light Armor Plating Relay Coupler [Duelist] (26) Relay Coupler [Hunter] (13) PSU Rigger Gatling Laser Enhanced Autogun Enhanced Autogun Enhanced Autogun Flak Gun Coil Gun Heavy Flak Cannon Grenade Launcher Remote Datajack Peak State ------------ > --- POWER ------------ Fission Core > --- PROPULSION ------- Compact Wheel Armored Wheel > --- UTILITY ---------- High-capacity Storage Unit Humpback Hardened Heavy Armor Plating Improved Medium Armor Plating Improved Medium Armor Plating Improved Medium Armor Plating System Backup Module PSU Rigger > --- WEAPON ----------- Flak Gun Flak Gun > --- INVENTORY -------- Cooled Ion Engine Light Deuterium Engine Reinforced Deuterium Engine Reinforced Deuterium Engine Light Treads Light Treads Wheel High-capacity Storage Unit High-capacity Storage Unit High-capacity Matter Pod Experimental Sensor Array Hardened Heavy Armor Plating Improved Light Armor Plating Improved Light Armor Plating Improved Light Armor Plating Improved Medium Armor Plating Hacking Suite Relay Coupler [NC] Relay Coupler [Duelist] Relay Coupler [Hunter] Compact Ion Cannon Enhanced Autogun Enhanced Autogun Enhanced Autogun Flak Gun Grenade Launcher Missile Launcher Remote Datajack Plasma Cutter [Rating: 60] Favorites ----------- Power Heavy Ion Engine Engine Heavy Ion Engine Power Core Fission Core Propulsion Light Treads Treads Light Treads Wheel Wheel Utility High-capacity Storage Unit Device PSU Rigger Storage High-capacity Storage Unit Hackware Hacking Suite Protection Improved Light Armor Plating Weapon Enhanced Autogun Energy Gun Heavy EM Pulse Gun Energy Cannon Heavy Ion Cannon Ballistic Gun Enhanced Autogun Launcher Grenade Launcher Special Weapon Plasma Cutter Build | -11 -10 -10 -10 -9 -8 -8 -8 -8 -6 ------- Run | Scr Mat Min Exi Min Mat Sto Gar Rec Fac Slots Evolved 8 | . . . . . 4 . . . 4 Power . | . . . . . . . . . . Propulsion . | . . . . . . . . . . Utility 8 | . . . . . 4 . . . 4 Weapon . | . . . . . . . . . . Parts Attached 245 | 9 24 4 3 2 65 44 41 10 43 Power 12 | 2 1 . . . 4 4 . . 1 Engine 11 | 2 1 . . . 4 4 . . . Core 1 | . . . . . . . . . 1 Reactor . | . . . . . . . . . . Propulsion 69 | 3 10 . . 2 9 18 17 . 10 Treads 33 | . 8 . . . 3 8 9 . 5 Leg . | . . . . . . . . . . Wheel 36 | 3 2 . . 2 6 10 8 . 5 Hover . | . . . . . . . . . . Flight . | . . . . . . . . . . Utility 78 | 2 4 1 1 . 28 7 12 3 20 Device 18 | . . . . . 9 2 4 . 3 Storage 12 | 2 4 1 1 . 2 . . . 2 Processor . | . . . . . . . . . . Hackware 8 | . . . . . 1 . 1 3 3 Protection 40 | . . . . . 16 5 7 . 12 Artifact . | . . . . . . . . . . Weapon 86 | 2 9 3 2 . 24 15 12 7 12 Energy Gun 9 | 2 3 . . . 4 . . . . Energy Cannon 10 | . . . . . . 4 2 . 4 Ballistic Gun 47 | . 6 1 2 . 12 8 7 6 5 Ballistic Cannon . | . . . . . . . . . . Launcher 11 | . . 2 . . 5 2 2 . . Special Weapon 9 | . . . . . 3 1 1 1 3 Impact Weapon . | . . . . . . . . . . Slashing Weapon . | . . . . . . . . . . Piercing Weapon . | . . . . . . . . . . Special Melee Weapon . | . . . . . . . . . . Unidentified Prototypes 6 | . . . . . 3 2 . . 1 Parts Lost 18 | . . . . . 7 2 1 . 8 Power 4 | . . . . . 3 1 . . . Propulsion 3 | . . . . . 1 . . . 2 Utility 10 | . . . . . 2 1 1 . 6 Weapon 1 | . . . . . 1 . . . . Highest Loss Streak 5 | . . . . . 4 1 1 . 5 Average Slot Usage (%) 89 | . 97 100 86 85 85 89 89 90 86 Engine 9 | . 13 14 14 14 9 9 9 9 2 Treads 11 | . 22 28 28 1 3 12 11 . . Wheel 9 | . 4 . . 26 14 5 6 18 11 Device 1 | . . . . . 1 3 1 . 3 Storage 19 | . 28 28 15 14 17 18 18 18 13 Hackware 5 | . . . . . 7 7 . 22 13 Protection 11 | . . . . . 14 16 25 4 22 Energy Gun 1 | . 3 . . . 4 . . . . Ballistic Gun 16 | . 22 19 19 28 12 14 17 17 11 Launcher 1 | . . 8 8 . . . . . . Naked Turns . | . . . . . . . . . . Heaviest Build 181 | 15 58 74 91 91 143 136 150 141 181 Greatest Support 43 | 26 40 40 40 40 40 43 43 22 40 Greatest Overweight (x) 15 | 1 10 1 2 4 6 11 6 6 15 Average Overweight (x) 3 | . 1 1 1 3 4 4 4 5 6 Largest Inventory Capacity 32 | 8 18 20 24 24 32 32 32 32 32 Average Capacity 27 | 6 16 19 23 24 31 32 32 32 31 Most Carried 32 | 6 18 18 24 24 32 32 32 32 32 Average Carried 26 | 3 15 18 20 23 29 31 30 31 28 Final Capacity 32 | 8 18 20 24 24 32 32 32 32 28 Final Carried 32 | 6 18 18 21 24 32 31 32 32 28 Class Distribution -------------------- 81% | Hauler-Mutant 16% | Mutant Dominant Class ---------------- Mutant | -10/Materials Hauler-Mutant | -10/Mines Hauler-Mutant | -10/Exiles Hauler-Mutant | -9/Mines Hauler-Mutant | -8/Materials Hauler-Mutant | -8/Storage Hauler-Mutant | -8/Garrison Hauler-Mutant | -8/Recycling Hauler-Mutant | -6/Factory Resources | -11 -10 -10 -10 -9 -8 -8 -8 -8 -6 ----------- Run | Scr Mat Min Exi Min Mat Sto Gar Rec Fac Matter Collected 6250 | 290 645 100 10 138 1614 1160 735 479 1079 Remotely . | . . . . . . . . . . Salvage Created 6488 | 205 644 28 . 178 2102 1098 1010 345 878 Parts 372 | 19 44 10 . 13 120 55 55 15 41 Haulers Intercepted 10 | . 2 . . . 5 3 . . . Recyclers Shooed 11 | 2 . . . . 4 2 . 1 2 Parts Field Recycled . | . . . . . . . . . . Retrieved Matter . | . . . . . . . . . . Parts Self-Destructed . | . . . . . . . . . . Prevented . | . . . . . . . . . . Kills | -11 -10 -10 -10 -9 -8 -8 -8 -8 -6 ------- Run | Scr Mat Min Exi Min Mat Sto Gar Rec Fac Combat Hostiles Destroyed 101 | . 9 6 . 2 32 14 22 7 9 Guns 68 | . 7 . . 2 17 10 17 7 8 Cannons 1 | . . . . . . . . . 1 AOE 32 | . 2 6 . . 15 4 5 . . Classes Destroyed 15 | 2 6 . . . 5 . . 1 1 Worker 15 | . 5 1 . 3 5 1 . . . Builder 5 | . 1 . . . 3 1 . . . Tunneler 7 | 5 . . . . 2 . . . . Hauler 10 | . 2 . . . 5 3 . . . Recycler 18 | 1 1 . . . 5 4 . 4 3 Mechanic 2 | . . . . . 1 1 . . . Operator 3 | . . . . . 1 1 . . 1 Drone 7 | . . . . . . . . 7 . Watcher 8 | . 3 . . . 4 1 . . . Swarmer 21 | . 6 6 . . 6 3 . . . Grunt 44 | . 3 . . 2 14 8 16 . 1 Brawler 5 | . . . . . 2 1 . . 2 Sentry 17 | . . . . . 8 2 5 . 2 Hunter 5 | . . . . . 2 . 1 . 2 Programmer 2 | . . . . . . . . . 2 Best Kill Streak 7 | 2 5 4 . 2 7 6 4 3 3 Combat Bots Only 5 | . 4 3 . 2 5 3 4 2 3 Max Kills in Single Turn 4 | 1 2 2 . 1 2 4 3 1 1 Gunslinging . | . . . . . . . . . . Exploded 3 | . 1 2 . . 2 2 3 . . Melee . | . . . . . . . . . . Uniques/NPCs Destroyed . | . . . . . . . . . . Combat | -11 -10 -10 -10 -9 -8 -8 -8 -8 -6 -------- Run | Scr Mat Min Exi Min Mat Sto Gar Rec Fac Damage Taken 6660 | . 375 114 . 50 2151 821 864 12 2273 Core 702 | . 67 . . 10 180 117 51 . 277 Absorbed by Shields 28 | . . . . . . . 24 4 . Core Remaining (%) 68 | 100 . . . 69 . . . 36 . Volleys Fired 498 | 17 48 5 . 11 163 81 61 38 74 Largest 2 | 2 2 1 . 2 2 2 2 2 2 Hottest 118 | 80 90 30 . 46 68 90 90 56 118 Shots Fired 907 | 34 96 5 . 22 293 148 113 69 127 Gun 818 | 34 96 . . 22 269 130 103 62 102 Cannon 37 | . . . . . . 13 6 . 18 Launcher 30 | . . 5 . . 19 3 3 . . Special 22 | . . . . . 5 2 1 7 7 Kinetic 702 | . 54 . . 22 229 130 103 62 102 Thermal 80 | 34 . . . . 5 15 6 . 20 Explosive 30 | . . 5 . . 19 3 3 . . Electromagnetic 82 | . 42 . . . 40 . . . . Robot Hit Streak 24 | 5 20 23 . 24 14 14 16 5 12 Robot Miss Streak 27 | 2 5 . . 2 4 4 5 27 6 Penetration Max . | . . . . . . . . . . Secondary Targets 4 | . . . . . . 1 . . 3 Max Gunslinging Chain 1 | . . . . . . 1 . . 1 Shots Hit Robots 591 | 21 42 3 . 15 190 105 72 36 107 Core Hits 331 | 7 24 9 . 7 97 40 41 25 81 Critical Hits 6 | . . . . . 1 4 1 . . Critical Kills 4 | . . . . . 1 2 1 . . Critical Parts Destroyed 2 | . . . . . . 2 . . . Melee Attacks . | . . . . . . . . . . Impact . | . . . . . . . . . . Slashing . | . . . . . . . . . . Piercing . | . . . . . . . . . . Sneak Attacks . | . . . . . . . . . . Combat Hostiles . | . . . . . . . . . . Follow-up Attacks . | . . . . . . . . . . Damage Inflicted 12040 | 185 1051 328 . 230 4581 2066 1480 407 1712 Guns 8609 | 185 898 . . 230 2624 1617 1088 407 1560 Cannons 305 | . . . . . . 83 82 . 140 Explosions 3059 | . 153 328 . . 1926 342 310 . . Melee . | . . . . . . . . . . Ramming . | . . . . . . . . . . Kinetic 7570 | . 575 . . 230 2093 1617 1088 407 1560 Thermal 830 | 185 153 . . . 151 107 82 . 152 Explosive 2786 | . . 328 . . 1806 342 310 . . Electromagnetic 854 | . 323 . . . 531 . . . . Impact . | . . . . . . . . . . Slashing . | . . . . . . . . . . Piercing . | . . . . . . . . . . Highest Corruption 18 | . 1 1 1 1 . . . . 18 Average Corruption 3 | . 1 1 1 1 . . . . 13 Corruption Purged 5 | . . . . . . . . . 5 Effects 89 | . 4 4 7 5 . . . . 69 Message Errors 25 | . 3 1 5 2 . . . . 14 Matter Fused 13 | . . . . . . . . . 13 Heat Flow Errors 4 | . . . . . . . . . 4 Energy Discharges 9 | . . 3 2 1 . . . . 3 Data Loss (minor) 5 | . 1 . . 1 . . . . 3 Data Loss (major) 2 | . . . . . . . . . 2 Misfires 3 | . . . . . . . . . 3 Misdirections 6 | . . . . . . . . . 6 Targeting Errors 18 | . . . . 1 . . . . 17 Weapon Failures 4 | . . . . . . . . . 4 Overload Shots . | . . . . . . . . . . Overflow Damage 162 | . . 32 . . 130 . . . . Projectiles 4 | . . . . . 4 . . . . Explosions 158 | . . 32 . . 126 . . . . Melee . | . . . . . . . . . . Knockbacks . | . . . . . . . . . . Impact . | . . . . . . . . . . Kinetic . | . . . . . . . . . . Secondary . | . . . . . . . . . . Self-Inflicted Damage 266 | . . 50 . . 193 23 . . . Shots 11 | . . 2 . . 8 1 . . . Rammed . | . . . . . . . . . . Targets Rammed . | . . . . . . . . . . Kicked . | . . . . . . . . . . Crushed . | . . . . . . . . . . Highest Temperature 533 | 72 210 . . 30 159 149 165 10 533 Average Temperature 67 | 29 45 . . 10 32 32 42 5 162 Received Heat Transfer 1761 | . 72 . . 30 603 378 369 6 303 Effects 18 | . 2 . . . . . . . 16 Shutdowns 1 | . . . . . . . . . 1 Energy Bleed 5 | . . . . . . . . . 5 Interference 3 | . 2 . . . . . . . 1 Matter Decay 2 | . . . . . . . . . 2 Short Circuit 1 | . . . . . . . . . 1 Damage (major) 5 | . . . . . . . . . 5 Damage (core) 1 | . . . . . . . . . 1 Siege Activations . | . . . . . . . . . . Robots Corrupted . | . . . . . . . . . . Combat Hostiles . | . . . . . . . . . . Parts Fried 7 | . 2 . . . 5 . . . . Impact Corruptions . | . . . . . . . . . . Robots Melted . | . . . . . . . . . . Combat Hostiles . | . . . . . . . . . . Parts Melted 1 | . . . . . . 1 . . . Heat Transferred 1304 | 425 200 . . . 161 185 111 . 222 Parts Sabotaged . | . . . . . . . . . . Parts Stolen . | . . . . . . . . . . Parts Stripped . | . . . . . . . . . . Power Chain Reactions 4 | . 2 . . . 2 . . . . Missiles Intercepted . | . . . . . . . . . . Alert | -11 -10 -10 -10 -9 -8 -8 -8 -8 -6 ------- Run | Scr Mat Min Exi Min Mat Sto Gar Rec Fac Peak Influence 976 | 30 309 105 . 50 763 356 976 547 973 Initial 957 | . 19 . . . 19 242 117 439 957 Average 233 | 11 115 20 . 16 228 180 532 349 246 Maximum Alert Level 3 | . 1 . . . 3 1 3 2 3 Low Security (%) 59 | 100 84 100 . 100 54 65 10 17 70 Level 1 20 | . 15 . . . 19 34 24 41 14 Level 2 14 | . . . . . 21 . 39 41 . Level 3 6 | . . . . . 4 . 24 . 14 Level 4 . | . . . . . . . . . . Level 5 . | . . . . . . . . . . High Security . | . . . . . . . . . . Max Security . | . . . . . . . . . . Squads Dispatched 16 | . 1 . . . 7 3 . . 5 Investigation 5 | . 1 . . . 1 1 . . 2 Extermination 2 | . . . . . . . . . 2 Reinforcement 5 | . . . . . 3 1 . . 1 Assault 1 | . . . . . 1 . . . . Garrison 3 | . . . . . 2 1 . . . Intercept . | . . . . . . . . . . Construction Impeded 1 | . . . . . 1 . . . . Haulers Reinforced . | . . . . . . . . . . Stealth | -11 -10 -10 -10 -9 -8 -8 -8 -8 -6 --------- Run | Scr Mat Min Exi Min Mat Sto Gar Rec Fac Distress Signals 8 | . 1 . . . 5 1 . . 1 Communications Jammed . | . . . . . . . . . . Distress Signals . | . . . . . . . . . . Times Spotted 175 | . 21 6 . 2 59 22 27 25 13 Peak Tracking Total 4 | . 3 3 . 2 4 3 4 4 3 Tactical Retreats 18 | . 8 . . . 2 2 5 . 1 Traps | -11 -10 -10 -10 -9 -8 -8 -8 -8 -6 ------- Run | Scr Mat Min Exi Min Mat Sto Gar Rec Fac Traps Triggered 31 | . 8 . . . . 3 18 . 2 Indirectly . | . . . . . . . . . . Trap Hack Attempts . | . . . . . . . . . . Triggered . | . . . . . . . . . . Disarmed . | . . . . . . . . . . Reprogrammed . | . . . . . . . . . . Reused . | . . . . . . . . . . Traps Extracted . | . . . . . . . . . . Installed . | . . . . . . . . . . Triggered . | . . . . . . . . . . Power Sources Rigged 27 | . . . . . 11 5 7 . 4 Exploded 19 | . . . . . 9 3 6 . 1 Machines | -11 -10 -10 -10 -9 -8 -8 -8 -8 -6 ---------- Run | Scr Mat Min Exi Min Mat Sto Gar Rec Fac Machines Disabled 17 | . . 2 . . 4 4 6 1 . Max in Single Turn 2 | . . 2 . . 1 1 2 1 . Garrison Access 1 | . . . . . 1 . . . . Garrison Relay 4 | . . . . . . . 4 . . Phase Generator 1 | . . . . . . . 1 . . Machines Sabotaged . | . . . . . . . . . . Garrisons Compromised . | . . . . . . . . . . Overloaded Fab Kills . | . . . . . . . . . . Fab Network Shutdowns . | . . . . . . . . . . Hacking | -11 -10 -10 -10 -9 -8 -8 -8 -8 -6 --------- Run | Scr Mat Min Exi Min Mat Sto Gar Rec Fac Machines Accessed 44 | . 9 . 2 . 10 8 . 11 4 Terminals 29 | . 7 . . . 7 5 . 6 4 Fabricators . | . . . . . . . . . . Repair Stations 5 | . 1 . . . 2 2 . . . Recycling Units 6 | . 1 . . . . . . 5 . Scanalyzers . | . . . . . . . . . . Garrison Access 2 | . . . . . 1 1 . . . Total Hacks 118 | . 28 . 2 . 30 28 . 18 12 Successful 76 | . 17 . 2 . 20 21 . 11 5 Failed 41 | . 10 . . . 10 7 . 7 7 Catastrophic 4 | . 1 . . . 2 1 . . . Database Lockouts 1 | . 1 . . . . . . . . Manual 49 | . 11 . 1 . 14 11 . 10 2 Terminals 78 | . 18 . . . 19 16 . 13 12 Fabricators . | . . . . . . . . . . Repair Stations 30 | . 9 . . . 10 11 . . . Recycling Units 6 | . 1 . . . . . . 5 . Scanalyzers . | . . . . . . . . . . Garrison Access 2 | . . . . . 1 1 . . . Terminal Hacks 33 | . 6 . 2 . 7 8 . 6 4 Record 1 | . . . 1 . . . . . . Part Schematic 1 | . . . . . . . . 1 . Robot Analysis 2 | . 1 . . . 1 . . . . Prototype ID Bank 9 | . 4 . . . 1 1 . 2 1 Open Door 1 | . . . . . . 1 . . . Branch Access Points 1 | . . . . . 1 . . . . Machine Index 1 | . . . . . . . . 1 . Terminal Index 3 | . . . . . 1 1 . . 1 Fabricator Index 1 | . . . . . . . . . 1 Garrison Index 1 | . . . . . . 1 . . . Unreport Threat 6 | . . . . . 2 1 . 2 1 Locate Traps 2 | . . . . . 1 1 . . . Recall Investigation 1 | . 1 . . . . . . . . Zone Layout 2 | . . . . . . 2 . . . EX-Prototype ID Bank 1 | . . . 1 . . . . . . Fabricator Hacks . | . . . . . . . . . . Repair Station Hacks 27 | . 8 . . . 10 9 . . . Scan Component 14 | . 4 . . . 5 5 . . . Repair 13 | . 4 . . . 5 4 . . . Recycling Unit Hacks . | . . . . . . . . . . Scanalyzer . | . . . . . . . . . . Garrison Access Hacks 2 | . . . . . 1 1 . . . Unlock Access 1 | . . . . . . 1 . . . Seal Access 1 | . . . . . 1 . . . . Unauthorized Hacks 14 | . 3 . . . 2 3 . 5 1 Terminals 8 | . 2 . . . 2 3 . . 1 Track 3 | . . . . . 1 2 . . . Assimilate 1 | . 1 . . . . . . . . Disrupt 1 | . . . . . . . . . 1 Operators 3 | . 1 . . . 1 1 . . . Fabricators . | . . . . . . . . . . Repair Stations . | . . . . . . . . . . Recycling Units 6 | . 1 . . . . . . 5 . Tunnel 6 | . 1 . . . . . . 5 . Scanalyzers . | . . . . . . . . . . Garrison Access . | . . . . . . . . . . Data Cores Recovered . | . . . . . . . . . . Used . | . . . . . . . . . . Hacking Detections 33 | . 7 . . . 9 7 . 6 4 Full Trace Events 4 | . . . . . 1 1 . . 2 Feedback Events 1 | . . . . . . 1 . . . Hackware Fried 1 | . . . . . . 1 . . . Feedback Blocked . | . . . . . . . . . . Robot Schematics Acquired . | . . . . . . . . . . Robots Built . | . . . . . . . . . . Matter . | . . . . . . . . . . Time . | . . . . . . . . . . Total Robot Build Rating . | . . . . . . . . . . Part Schematics Acquired 1 | . . . . . . . . 1 . Parts Built . | . . . . . . . . . . Matter . | . . . . . . . . . . Time . | . . . . . . . . . . Total Part Build Rating . | . . . . . . . . . . Parts Repaired 13 | . 4 . . . 5 4 . . . Time 536 | . 116 . . . 230 190 . . . Parts Recycled . | . . . . . . . . . . Recycled Matter . | . . . . . . . . . . Retrieved Matter . | . . . . . . . . . . Retrieved Components . | . . . . . . . . . . Parts Scanalyzed . | . . . . . . . . . . Part Schematics Acquired . | . . . . . . . . . . Parts Damaged . | . . . . . . . . . . Bothacking | -11 -10 -10 -10 -9 -8 -8 -8 -8 -6 ------------ Run | Scr Mat Min Exi Min Mat Sto Gar Rec Fac Used RIF Installer 1 | . . . . . . . 1 . . Robots Hacked 3 | . . . . . . . 1 1 1 Non-combat 2 | . . . . . . . . 1 1 Combat 1 | . . . . . . . 1 . . Robot Hacks Applied 6 | . . . . . . . 1 1 4 parse_system 1 | . . . . . . . . 1 . purge_threat 4 | . . . . . . . . . 4 overload_power 1 | . . . . . . . 1 . . Relay Couplers Released 18 | . . . . . . . 18 . . Machine Destruction 18 | . . . . . . . 18 . . Attached 3 | . . . . . . . 1 1 1 Robots Rewired 6 | . . . . . . . . 6 . Allies Hacked . | . . . . . . . . . . Hacks Repelled . | . . . . . . . . . . Allies | -11 -10 -10 -10 -9 -8 -8 -8 -8 -6 -------- Run | Scr Mat Min Exi Min Mat Sto Gar Rec Fac Total Allies 7 | . 1 . . . . . . 6 . Largest Group 6 | . 1 1 1 1 1 . . 6 5 Highest-Rated Group 122 | . 10 10 10 10 10 . . 122 101 Highest-Rated Ally 24 | . 10 10 10 10 10 . . 24 24 Total Orders 6 | . . . 1 4 . . . . 1 STAY 4 | . . . 1 2 . . . . 1 FOLLOW 2 | . . . . 2 . . . . . Ally Attacks 18 | . . . . . . . . 18 . Total Damage 164 | . . . . . . . . 164 . Kills 3 | . . . . . . . . 3 . Allies Corrupted . | . . . . . . . . . . Allies Melted . | . . . . . . . . . . Intel | -11 -10 -10 -10 -9 -8 -8 -8 -8 -6 ------- Run | Scr Mat Min Exi Min Mat Sto Gar Rec Fac Robot Analysis Total 2 | . 1 . . . 1 . . . . Derelict Logs Recovered 3 | . . 1 . 2 . . . . . Drone Launches . | . . . . . . . . . . Drone Recoveries . | . . . . . . . . . . Exploration | -11 -10 -10 -10 -9 -8 -8 -8 -8 -6 ------------- Run | Scr Mat Min Exi Min Mat Sto Gar Rec Fac Turns Passed 13890 | 161 1678 1024 1126 782 2983 1803 1991 974 1368 Spaces Moved 6792 | 100 835 561 559 451 1509 755 815 530 677 Core 24 | 23 1 . . . . . . . . Treads 2889 | . 668 561 559 15 206 425 453 . 2 Legs . | . . . . . . . . . . Wheels 3879 | 77 166 . . 436 1303 330 362 530 675 Hover . | . . . . . . . . . . Flight . | . . . . . . . . . . Fastest Speed 50 | 50 80 180 160 120 120 135 145 135 145 Average Speed 163 | 86 161 180 196 122 147 188 189 139 155 Slowest Speed 550 | 100 550 180 200 200 220 225 225 145 240 Overloaded Moves . | . . . . . . . . . . Propulsion Burnouts . | . . . . . . . . . . Robots Hopped . | . . . . . . . . . . Cave-ins Triggered . | . . . . . . . . . . Exploration Rate (%) 71 | 5 98 99 70 72 93 75 91 87 22 Regions Visited 9 Branch Regions 5 Pre-discovered Areas 8 | . 1 1 1 . . . . 5 . Known Exits Taken 2 | . . . . . 1 1 . . . Unknown Exits Taken 6 | 1 1 1 1 1 . . . 1 . Scrap Searched 4 | . . 2 . 2 . . . . . Spaces Dug 6 | . . . . . . 2 . . 4 Terrain Destroyed 254 | . 7 30 . . 93 26 85 . 13 Melee . | . . . . . . . . . . Projectile 20 | . . . . . 1 6 . . 13 AOE 234 | . 7 30 . . 92 20 85 . . Terrain Rammed . | . . . . . . . . . . Walls Destroyed . | . . . . . . . . . . Machines Disabled . | . . . . . . . . . . Actions | -11 -10 -10 -10 -9 -8 -8 -8 -8 -6 --------- Run | Scr Mat Min Exi Min Mat Sto Gar Rec Fac Total 8860 | 140 1083 570 591 663 2042 1033 1181 701 856 Wait 857 | . 126 . . 189 171 111 153 87 20 Move 6784 | 99 834 560 558 450 1508 755 814 529 677 Hop . | . . . . . . . . . . Pick Up 234 | 14 37 . 22 7 77 21 22 1 33 Fast Attach 15 | . 2 . 1 . 6 4 1 . 1 Attach 57 | 7 11 . . . 18 6 2 . 13 Detach 4 | . . . . . 4 . . . . Swap 173 | 2 11 4 2 2 41 34 38 10 29 Drop 115 | 1 14 1 8 4 43 16 23 . 5 Fire 498 | 17 48 5 . 11 163 81 61 38 74 Melee . | . . . . . . . . . . Ram . | . . . . . . . . . . Kick . | . . . . . . . . . . Crush . | . . . . . . . . . . Escape Stasis 60 | . . . . . . . 60 . . Rewire 36 | . . . . . . . . 36 . Trap 27 | . . . . . 11 5 7 . 4 Miscellaneous . | . . . . . . . . . . Route ------- -11/Scrapyard -10/Materials (discovered 4 exits: [*Mat x3] / [*Min]) -10/Mines (discovered 3 exits: [*Mat x2] / *Exi) -10/Exiles (discovered 2 exits: [*Min x2]) -9/Mines -8/Materials (discovered 4 exits: [*Fac x3] / *Sto) -8/Storage -8/Garrison (discovered 3 exits: *Rec x3) -8/Recycling -6/Factory (discovered 2 exits: [*Fac] / [*Low]) History --------- Turn | Location | Event 19 | -11/Scrapyard | Discovered new exit (range 16) 162 | -11/Scrapyard | Entered Materials 315 | -10/Materials | Build established: Mutant 368 | -10/Materials | Discovered new exit (range 7) 971 | -10/Materials | Discovered new exit (range 14) 1094 | -10/Materials | Repaired Autogun 1134 | -10/Materials | Repaired Autogun? 1201 | -10/Materials | Repaired Lgt. Treads 1230 | -10/Materials | Repaired Lgt. Treads 1368 | -10/Materials | Discovered new exit (range 16) 1724 | -10/Materials | Discovered new exit (range 11) 1742 | -10/Materials | Central database locked down 1840 | -10/Materials | Entered Mines 1840 | -10/Mines | Accompanied by 1 ally 1851 | -10/Mines | Met a Derelict bent on vengeance 1875 | -10/Mines | A weapon hastily lodged in a ceiling crevice suddenly fell to the ground 1939 | -10/Mines | Deemed a non-threat by the Exiles lab entrance 1939 | -10/Mines | Discovered new exit (range 5) 2042 | -10/Mines | Discovered new exit (range 16) 2391 | -10/Mines | Learned location of Storage (-8) 2522 | -10/Mines | Discovered new exit (range 11) 2617 | -10/Mines | Build established: Hauler-Mutant 2864 | -10/Mines | Entered Exiles 2864 | -10/Exiles | Accompanied by 1 ally 2888 | -10/Exiles | Discovered new exit (range 15) 2909 | -10/Exiles | Met 8R-AWN 2938 | -10/Exiles | Met EX-HEX 3156 | -10/Exiles | Met EX-DEC 3190 | -10/Exiles | Learned location of Zion (-6) 3342 | -10/Exiles | Met EX-BIN 3364 | -10/Exiles | Aligned with FarCom system 3366 | -10/Exiles | Given EX-Vault access code 3418 | -10/Exiles | Opened EX-Vault 3434 | -10/Exiles | Found PSU Rigger 3487 | -10/Exiles | Warned to stay clear of 0b10 Research branches 3820 | -10/Exiles | Discovered new exit (range 10) 3990 | -10/Exiles | Left Exiles lab with PSU Rigger 3990 | -10/Exiles | Entered Mines 3990 | -9/Mines | Accompanied by 1 ally 4071 | -9/Mines | Assembled infested the area 4552 | -9/Mines | Learned Materials stockpile data 4583 | -9/Mines | Learned Materials security intel 4633 | -9/Mines | Discovered new exit (range 7) 4723 | -9/Mines | Found a damaged Exp. Sensor Array with a note attached 4726 | -9/Mines | Found Prototype Device 4772 | -9/Mines | Entered Materials 4772 | -8/Materials | Accompanied by 1 ally 4772 | -8/Materials | Evolved 4 slots: Utility x4 4813 | -8/Materials | Identified Exp. Sensor Array 4964 | -8/Materials | Lost 4 parts (2p1n1w) 5068 | -8/Materials | Discovered new exit (range 11) 5833 | -8/Materials | Identified exit to Storage 6622 | -8/Materials | Repaired Med. Armor Plating? 6676 | -8/Materials | Repaired Arm. Wheel? 6819 | -8/Materials | Repaired Exp. Sensor Array 6849 | -8/Materials | Repaired Hcp. Storage Unit? 7093 | -8/Materials | Discovered new exit (range 11) 7202 | -8/Materials | Repaired Enh. Autogun 7572 | -8/Materials | First assault squad dispatched 7599 | -8/Materials | Discovered new exit (range 3) 7755 | -8/Materials | Entered Storage 8087 | -8/Storage | Garrison activated, responded to threat 8984 | -8/Storage | Repaired Arm. Wheel 9090 | -8/Storage | Repaired Enh. Autogun? 9189 | -8/Storage | Hacking Suite fried by hacking feedback 9240 | -8/Storage | Repaired Imp. Light Armor Plating 9260 | -8/Storage | Core integrity fell below 50% 9351 | -8/Storage | Repaired Enh. Autogun 9558 | -8/Storage | Identified exit to Garrison 9558 | -8/Storage | Entered Garrison 9566 | -8/Garrison | Installed Relay Interface Framework 9706 | -8/Garrison | Triggered checkpoint 9765 | -8/Garrison | Garrison Relay disabled 9882 | -8/Garrison | Phase Generator disabled 10392 | -8/Garrison | Triggered checkpoint 10477 | -8/Garrison | Discovered new exit (range 10) 10582 | -8/Garrison | Garrison Relay disabled 10726 | -8/Garrison | Triggered checkpoint 10913 | -8/Garrison | Discovered new exit (range 10) 11065 | -8/Garrison | Triggered checkpoint 11131 | -8/Garrison | Garrison Relay disabled 11250 | -8/Garrison | Triggered checkpoint 11419 | -8/Garrison | Discovered new exit (range 5) 11488 | -8/Garrison | Triggered checkpoint 11516 | -8/Garrison | Garrison Relay disabled 11549 | -8/Garrison | Entered Recycling 11601 | -8/Recycling | Spotter reported a threat 11601 | -8/Recycling | Spotter reported a threat 11602 | -8/Recycling | Spotter reported a threat 11620 | -8/Recycling | Spotter reported a threat 11651 | -8/Recycling | Spotter reported a threat 11660 | -8/Recycling | Spotter reported a threat 11696 | -8/Recycling | Spotter reported a threat 11749 | -8/Recycling | Spotter reported a threat 11834 | -8/Recycling | Spotter reported a threat 11850 | -8/Recycling | Spotter reported a threat 11851 | -8/Recycling | Spotter reported a threat 11882 | -8/Recycling | Spotter reported a threat 11900 | -8/Recycling | Spotter reported a threat 11903 | -8/Recycling | Spotter reported a threat 11911 | -8/Recycling | Spotter reported a threat 11956 | -8/Recycling | Spotter reported a threat 12077 | -8/Recycling | Spotter reported a threat 12089 | -8/Recycling | Spotter reported a threat 12100 | -8/Recycling | Spotter reported a threat 12100 | -8/Recycling | Spotter reported a threat 12130 | -8/Recycling | Spotter reported a threat 12218 | -8/Recycling | Spotter reported a threat 12354 | -8/Recycling | Spotter reported a threat 12355 | -8/Recycling | Spotter reported a threat 12384 | -8/Recycling | Spotter reported a threat 12390 | -8/Recycling | Discovered new exit (range 9) 12442 | -8/Recycling | Spotter reported a threat 12442 | -8/Recycling | Spotter reported a threat 12467 | -8/Recycling | Spotter reported a threat 12486 | -8/Recycling | Spotter reported a threat 12495 | -8/Recycling | Spotter reported a threat 12520 | -8/Recycling | Spotter reported a threat 12523 | -8/Recycling | Entered Factory 12523 | -6/Factory | Accompanied by 5 allies 12523 | -6/Factory | Evolved 4 slots: Utility x4 13146 | -6/Factory | System corruption reached 10% 13193 | -6/Factory | Lost 5 parts (1n4u) 13556 | -6/Factory | Discovered new exit (range 12) 13759 | -6/Factory | Discovered new exit (range 4) 13891 | -6/Factory | Self-destructed Last Messages --------------- 13833_ U-05 Engineer builds a Wall. 13834_ U-05 Engineer lays Concrete. 13836_ Acquired Remote Datajack. 13836_ U-05 Engineer lays Concrete. 13837_ U-05 Engineer builds a Wall. 13839_ Acquired 54 matter. 13839_ U-05 Engineer lays Concrete. 13840_ U-05 Engineer builds a Wall. 13842_ Acquired Lgt. Treads. 13843_ U-05 Engineer lays Concrete. 13845_ System corrupted: Matter fused (-7). 13845_ U-05 Engineer lays Concrete. 13845_ Acquired Lgt. Treads. 13846_ U-05 Engineer lays Concrete. 13854_ Acquired 31 matter. 13856_ Extracted 200 matter. 13858_ Acquired Hcp. Matter Pod. 13861_ Acquired Flak Gun. 13862_ VWSH&EOI